[Event "USA Championship 2024"]
[Site "Saint Louis"]
[Date "2024.10.12"]
[Round "2.6"]
[White "Dominguez Perez, Leinier"]
[Black "Shankland, Sam"]
[Result "1/2-1/2"]
[ECO "B90"]
[WhiteElo "2741"]
[BlackElo "2677"]
[Annotator "TA"]
[PlyCount "97"]
[EventDate "2024.10.09"]
[EventType "tourn"]
[EventCountry "USA"]
[SourceTitle "playchess.com"]
[Source "ChessBase"]
[SourceQuality "1"]
[TimeControl "40/5400+30:1800+30"]

{[%evp 15,97,29,33,32,27,23,29,14,22,13,37,6,24,20,23,17,22,0,0,0,0,0,0,0,0,0,0,-18,-27,-16,0,0,47,-14,0,-6,-19,-20,0,-17,-18,-56,-56,-47,-48,-36,-36,-940,-873,-959,-951,-951,-918,-29984,-29985,-29985,-29986,-29986,-29987,-29987,-29988,-29988,-29989,-29989,-29990,-29990,-29991,-29991,-1011,-926,-852,-725,0,0,0,0,0,0,0,0,0,0,0,0]} 1. e4 {[%emt 0:00:03]} c5 {[%emt 0:00:10]} 2. Nf3 {[%emt 0:00:10]} d6 {[%emt 0:00:03]} 3. d4 {[%emt 0:00:07]} cxd4 {[%emt 0:00:05]} 4. Nxd4 {[%emt 0:00:06]} Nf6 {[%emt 0:00:04]} 5. Nc3 {[%emt 0:00:07]} a6 {[%emt 0:00:03]} 6. f3 {[%emt 0:00:08]} e5 {[%emt 0:00:07]} 7. Nb3 {[%emt 0:00:06]} Be6 {[%emt 0:00:15]} 8. Be3 {[%emt 0:00:08]} h5 {[%emt 0:00:13]} 9. Nd5 {[%emt 0:00:49]} Nxd5 {[%emt 0:00:07]} 10. exd5 {[%emt 0:00:09]} Bf5 {[%emt 0:00:02]} 11. Qd2 {[%emt 0:10:11] White has an edge.} Nd7 {[%emt 0:00:29]} 12. Na5 {[%emt 0:15:25][%cal Of1e2]} Rb8 {[%emt 0:00:48]} 13. Be2 {[%emt 0:12:24]} Qh4+ {[%emt 0:00:40]} 14. Bf2 {[%emt 0:03:18]} Qf6 {[%emt 0:00:27]} 15. O-O {[%emt 0:03:22]} Be7 {[%emt 0:04:21]} 16. c4 {[%emt 0:05:32]} Qg6 {[%emt 0:02:52]} 17. Be3 {[%emt 0:01:10]} O-O {[%emt 0:06:43]} 18. b4 {[%emt 0:01:58]} Rfe8 {[%emt 0:03:40]} 19. Rac1 {[%emt 0:01:31]} Bd8 {[%emt 0:01:36]} 20. Nb3 {[%emt 0:07:36]} b6 {[%emt 0:00:26]} 21. c5 {[%emt 0:01:50]} bxc5 {[%emt 0:01:01]} (21... dxc5 {is interesting.} 22. bxc5 bxc5 23. Nxc5 Nxc5 24. Rxc5 Be7) 22. bxc5 {[%emt 0:00:04]} dxc5 {[%emt 0:01:32]} 23. Nxc5 {[%emt 0:00:12]} e4 {[%emt 0:11:31]} (23... Nxc5 $11 {should be considered.} 24. Rxc5 e4) 24. Nxd7 {[%emt 0:10:06] [#]} (24. Bxa6 $2 Nxc5 25. Bxc5 exf3 $19 (25... Qxa6 $2 26. Qf4 $19)) (24. fxe4 $14 Bxe4 25. Nxe4 (25. Nxd7 $2 Qxg2#) 25... Qxe4 26. Bf4) 24... exf3 $1 {[%emt 0:11:53]} 25. Bxf3 {[%emt 0:01:51]} (25. Nxb8 $2 Qxg2#) (25. Bd3 Bxd3 26. Rxf3 (26. Nxb8 $2 Rxe3 27. Qf2 Bb6 $19) 26... Rb1 27. Rxb1 Bxb1 $17) (25. Rxf3 Bxd7) 25... Bxd7 {[%emt 0:00:12]} 26. Bf4 {[%emt 0:00:28]} Rc8 {[%emt 0:03:10]} 27. Kh1 {[%emt 0:03:11]} Rxc1 {[%emt 0:02:00]} 28. Rxc1 {[%emt 0:00:34]} Qf5 {[%emt 0:00:54] White must now prevent ...g5.} 29. Be3 {[%emt 0:09:29]} g5 {[%emt 0:03:20] And now ...g4 would win.} 30. d6 {[%emt 0:05:02][%cal Oe3d4]} (30. Bxh5 $2 g4 31. Bxf7+ Kxf7 $19 (31... Qxf7 $2 32. Rd1 $19)) 30... g4 {[%emt 0:02:11]} 31. Bc6 {[%emt 0:00:59][%mdl 8192]} (31. Bb7 $15) 31... Bxc6 $19 {[%emt 0:14:53]} 32. Rxc6 {[%emt 0:00:02] [#]} Qf1+ $1 {[%emt 0:02:27]} 33. Bg1 {[%emt 0:00:02]} Re2 {[%emt 0:00:20][%csl Ge2][%cal Rf1g2]} 34. Qd5 {[%emt 0:00:39]} Bh4 {[%emt 0:01:11]} 35. Rc8+ {[%emt 0:02:00]} Kg7 {[%emt 0:00:00]} 36. Qd4+ {[%emt 0:00:31]} Bf6 {[%emt 0:00:00][%csl Ge2][%cal Rf1g2]} 37. Qd5 {[%emt 0:00:13]} Re1 {[%emt 0:03:31][%csl Ge1][%cal Rf1g1]} 38. Qc5 {[%emt 0:02:53]} h4 {[%emt 0:01:41]} 39. d7 {[%emt 0:02:23]} h3 {[%emt 0:00:43][%csl Gf1][%cal Rh3g2]} 40. Qf8+ {[%emt 0:00:42]} Kg6 {[%emt 0:00:03][%csl Ge1][%cal Rf1g1]} 41. Qg8+ {[%emt 0:30:13]} Kh6 {[%emt 0:31:36]} (41... Bg7 $142 42. Rc6+ f6 43. Rxf6+ Qxf6 44. Qe8+ Kh7 (44... Rxe8 45. dxe8=Q+ Qf7 46. Qc6+ Kh5 47. Qe4 $11) 45. Qh5+ Bh6 46. Qxh3 gxh3 47. d8=Q Rxg1+ (47... Qxd8 $2 48. a4 Qd5 49. a5 hxg2#) 48. Kxg1 Be3+ 49. Kh1 Qf1#) 42. Qf8+ {[%emt 0:01:30]} Bg7 {[%emt 0:00:44][%csl Ge1][%cal Rf1g1]} 43. Rc6+ {[%emt 0:01:45]} Kh7 $2 {[%emt 0:00:11]} ({Better is} 43... f6 $19 44. Rxf6+ Qxf6) 44. Qg8+ $1 $11 {[%emt 0:00:27] The position is equal.} Kxg8 {[%emt 0:00:08][%csl Ge1][%cal Rf1g1]} 45. d8=Q+ {[%emt 0:00:08]} Bf8 {[%emt 0:03:26][%csl Ge1][%cal Rf1g1]} (45... Kh7 $5 46. Qh4+ $8 Kg8 47. Qd8+ (47. Rc8+ Bf8 $11) 47... Bf8 48. Qg5+ Bg7 49. Qd8+ $11) 46. Qg5+ {[%emt 0:00:07]} Bg7 {[%emt 0:00:18][%csl Ge1][%cal Rf1g1]} 47. Qd8+ {[%emt 0:01:14]} Bf8 {[%emt 0:00:04][%csl Ge1][%cal Rf1g1]} (47... Kh7 $5 48. Qh4+ $8 Kg8 49. Qd8+ $11 (49. Rc8+ Bf8 $11)) 48. Qg5+ {[%emt 0:00:07]} Bg7 {[%emt 0:00:02][%csl Ge1][%cal Rf1g1]} 49. Qd8+ {[%emt 0:00:38] Whites escaped into a draw.   Weighted Error Value: White=0.41/Black=0.40.  Loses game:     	White=1     	---        Mistake:       	White=1     	Black=1      Inaccurate:     	White=2     	---        OK:         	White=5     	Black=12     Best:        	White=5     	Black=2} 1/2-1/2